fUSD/lending_fUSD_20250602
["ID","MTS","AMOUNT","RATE_DAILY","PERIOD"]
[363860768,1748904604683,1394.54,0.00040014,120]
[363860769,1748904604751,1195.69,0.00040014,120]
[363860770,1748904604823,420.0,0.00040014,120]
[363860771,1748904604890,1266.52,0.00040014,120]
[363860772,1748904604957,570.47,0.00040014,120]
[363860773,1748904605025,1090.35,0.00040014,120]
[363860774,1748904605103,1651.34,0.00040014,120]
[363860775,1748904605171,1394.54,0.00040014,120]
[363860776,1748904605234,1266.52,0.00040014,120]
[363860777,1748904605300,570.47,0.00040014,120]
[363860778,1748904605383,1090.35,0.00040014,120]
[363860779,1748904605453,1651.34,0.00040014,120]
[363860780,1748904605861,1394.54,0.00040014,120]
[363860781,1748904605927,1266.52,0.00040014,120]
[363860782,1748904605989,1195.69,0.00040014,120]
[363860783,1748904606060,570.47,0.00040014,120]
[363860784,1748904606124,1090.35,0.00040014,120]
[363860785,1748904606189,1651.34,0.00040014,120]
[363860786,1748904606251,1266.52,0.00040014,120]
[363860787,1748904606320,1394.54,0.00040014,120]
[363860788,1748904606392,1195.69,0.00040014,120]
[363860789,1748904606489,570.47,0.00040014,120]
[363860790,1748904606559,1090.35,0.00040014,120]
[363860791,1748904606629,1266.52,0.00040014,120]
[363860792,1748904606697,1651.34,0.00040014,120]
[363860793,1748904606763,1394.54,0.00040014,120]
[363860794,1748904606828,1090.35,0.00040014,120]
[363860795,1748904606893,1651.34,0.00040014,120]
[363860796,1748904606955,420.0,0.00040014,120]
[363860797,1748904607017,1266.52,0.00040014,120]
[363860798,1748904607081,855.12,0.00040014,120]
[363860799,1748904607147,1394.54,0.00040014,120]
[363860800,1748904607210,1090.35,0.00040014,120]
[363860801,1748904607306,570.47,0.00040014,120]
[363860802,1748904607386,1651.34,0.00040014,120]
[363860803,1748904607490,855.12,0.00040014,120]
[363860804,1748904607593,1266.52,0.00040014,120]
[363860805,1748904607663,1394.54,0.00040014,120]
[363860806,1748904607726,1195.69,0.00040014,120]
[363860807,1748904607789,1090.35,0.00040014,120]
[363860808,1748904607856,570.47,0.00040014,120]
[363860809,1748904607920,855.12,0.00040014,120]
[363860810,1748904607981,1651.34,0.00040014,120]
[363860811,1748904608339,1266.58656604,0.00040014,120]
[363860812,1748904608450,1394.54,0.00040014,120]
[363860813,1748904608568,1090.35,0.00040014,120]
[363860814,1748904608635,1195.69,0.00040014,120]
[363860815,1748904608716,570.47,0.00040014,120]
[363860816,1748904608782,1651.34,0.00040014,120]
[363860817,1748904608850,855.12,0.00040014,120]
[363860818,1748904608915,1394.54,0.00040014,120]
[363860819,1748904608975,1195.69,0.00040014,120]
[363860820,1748904609041,1090.35,0.00040014,120]
[363860821,1748904609102,570.47,0.00040014,120]
[363860822,1748904609165,1651.34,0.00040014,120]
[363860823,1748904609229,1394.54,0.00040014,120]
[363860824,1748904609288,1195.69,0.00040014,120]
[363860825,1748904609347,460.0,0.00040014,120]
[363860826,1748904609408,1090.35,0.00040014,120]
[363860827,1748904609471,1651.34,0.00040014,120]
[363860828,1748904609541,1394.54,0.00040014,120]
[363860829,1748904609608,855.12,0.00040014,120]
[363860830,1748904609672,380.0,0.00040014,120]
[363860831,1748904609737,1195.69,0.00040014,120]
[363860832,1748904609801,1090.35,0.00040014,120]
[363860833,1748904609867,570.66,0.00040014,120]
[363860834,1748904609935,1651.34,0.00040014,120]
[363860835,1748904609999,1394.54,0.00040014,120]
[363860836,1748904610065,855.12,0.00040014,120]
[363860837,1748904610132,1195.69,0.00040014,120]
[363860838,1748904610196,1090.35,0.00040014,120]
[363860839,1748904610258,347.2579396,0.00040014,120]
[363860840,1748904610388,1394.54,0.00040014,120]
[363860841,1748904610466,855.12,0.00040014,120]
[363860842,1748904610533,1195.69,0.00040014,120]
[363860843,1748904610598,1090.35,0.00040014,120]
[363860844,1748904610680,1394.54,0.00040014,120]
[363860845,1748904610748,855.12,0.00040014,120]
[363860846,1748904610813,1195.69,0.00040014,120]
[363860847,1748904610880,1090.35,0.00040014,120]
[363860848,1748904610945,1039.43,0.00040014,120]
[363860849,1748904611022,420.0,0.00040014,120]
[363860850,1748904611071,1394.54,0.00040014,120]
[363860851,1748904611120,855.12,0.00040014,120]
[363860852,1748904611168,1195.69,0.00040014,120]
[363860853,1748904611216,1090.35,0.00040014,120]
[363860854,1748904611260,421.01791098,0.00040014,120]
[363860855,1748904611309,1394.54,0.00040014,120]
[363860856,1748904611357,1195.69,0.00040014,120]
[363860857,1748904611405,855.12,0.00040014,120]
[363860858,1748904611451,1090.35,0.00040014,120]
[363860859,1748904611591,1394.54,0.00040014,120]
[363860860,1748904611643,1090.35,0.00040014,120]
[363860861,1748904611691,855.12,0.00040014,120]
[363860862,1748904611738,1195.69,0.00040014,120]
[363860863,1748904611883,1394.54,0.00040014,120]
[363860864,1748904611937,855.12,0.00040014,120]
[363860865,1748904611984,1090.35,0.00040014,120]
[363860866,1748904612031,1195.69,0.00040014,120]
[363860867,1748904612081,460.0,0.00040014,120]
[363860868,1748904612142,8781.33,0.00040014,120]
[363860869,1748904612190,855.12,0.00040014,120]
[363860870,1748904612236,1090.38994152,0.00040014,120]
[363860871,1748904612283,380.0,0.00040014,120]
[363860872,1748904612329,460.0,0.00040014,120]
[363860873,1748904612381,8781.33,0.00040014,120]
[363860874,1748904612429,855.12,0.00040014,120]
[363860875,1748904612477,1394.54,0.00040014,120]
[363860876,1748904612523,268.33,0.00040014,120]
[363860877,1748904612571,1195.69,0.00040014,120]
[363860878,1748904612646,8781.33,0.00040014,120]
[363860879,1748904612694,855.12,0.00040014,120]
[363860880,1748904612741,1394.54,0.00040014,120]
[363860881,1748904612789,1195.69,0.00040014,120]
[363860882,1748904612833,460.0,0.00040014,120]
[363860883,1748904613205,855.12,0.00040014,120]
[363860884,1748904613271,8781.33,0.00040014,120]
[363860885,1748904613322,1394.54,0.00040014,120]
[363860886,1748904613372,1195.86,0.00040014,120]
[363860887,1748904613422,380.0,0.00040014,120]
[363860888,1748904613498,855.12,0.00040014,120]
[363860889,1748904613570,1394.57,0.00040014,120]
[363860890,1748904613624,8781.33,0.00040014,120]
[363860891,1748904613684,420.0,0.00040014,120]
[363860892,1748904613732,855.12,0.00040014,120]
[363860893,1748904613791,8781.33,0.00040014,120]
[363860894,1748904613857,855.12,0.00040014,120]
[363860895,1748904613905,8781.33,0.00040014,120]
[363860896,1748904613955,469.94200811,0.00040014,120]
[363860897,1748904614076,8781.33,0.00040014,120]
[363860898,1748904614132,420.0,0.00040014,120]
[363860899,1748904614204,855.12,0.00040014,120]
[363860900,1748904614255,8781.33,0.00040014,120]
[363860901,1748904614320,855.12,0.00040014,120]
[363860902,1748904614378,8781.33,0.00040014,120]
[363860903,1748904614425,460.0,0.00040014,120]
[363860904,1748904614477,1039.43,0.00040014,120]
[363860905,1748904614528,855.12,0.00040014,120]
[363860906,1748904614610,380.0,0.00040014,120]
[363860907,1748904614665,8781.33,0.00040014,120]
[363860908,1748904614717,1039.43,0.00040014,120]
[363860909,1748904614774,855.12,0.00040014,120]
[363860910,1748904614856,8781.33,0.00040014,120]
[363860911,1748904614905,1039.43,0.00040014,120]
[363860912,1748904614956,855.2,0.00040014,120]
[363860913,1748904615105,8781.33,0.00040014,120]
[363860914,1748904615152,1674.58,0.00040014,120]
[363860915,1748904615204,1039.43,0.00040014,120]
[363860916,1748904615254,444.04360177,0.00040014,120]
[363860917,1748904615310,8781.33,0.00040014,120]
[363860918,1748904615356,1674.58,0.00040014,120]
[363860919,1748904615403,1039.43,0.00040014,120]
[363860920,1748904615448,460.86,0.00040014,120]
[363860921,1748904615495,1674.58,0.00040014,120]
[363860922,1748904615546,8781.33,0.00040014,120]
[363860923,1748904615593,1039.43,0.00040014,120]
[363860924,1748904615656,8781.33,0.00040014,120]
[363860925,1748904615717,1674.58,0.00040014,120]
[363860926,1748904615771,8781.33,0.00040014,120]
[363860927,1748904615834,1039.43,0.00040014,120]
[363860928,1748904616234,420.0,0.00040014,120]
[363860929,1748904616294,1674.58,0.00040014,120]
[363860930,1748904616352,8781.33,0.00040014,120]
[363860931,1748904616434,1039.43,0.00040014,120]
[363860932,1748904616526,1674.58,0.00040014,120]
[363860933,1748904616589,8781.33,0.00040014,120]
[363860934,1748904616698,1039.43,0.00040014,120]
[363860935,1748904616749,1674.58,0.00040014,120]
[363860936,1748904616797,8781.33,0.00040014,120]
[363860937,1748904616842,420.0,0.00040014,120]
[363860938,1748904617226,1039.43,0.00040014,120]
[363860939,1748904617333,1674.58,0.00040014,120]
[363860940,1748904617410,8781.33,0.00040014,120]
[363860941,1748904617466,1039.43,0.00040014,120]
[363860942,1748904617513,1674.58,0.00040014,120]
[363860943,1748904617567,8781.33,0.00040014,120]
[363860944,1748904617653,420.0,0.00040014,120]
[363860945,1748904617699,1039.43,0.00040014,120]
[363860946,1748904617745,1674.58,0.00040014,120]
[363860947,1748904617791,216.6,0.00040014,120]
[363860948,1748904617839,8781.33,0.00040014,120]
[363860949,1748904617888,1039.43,0.00040014,120]
[363860950,1748904617936,1674.58,0.00040014,120]
[363860951,1748904617989,8781.44672973,0.00040014,120]
[363860952,1748904618039,1039.43,0.00040014,120]
[363860953,1748904618087,1674.58,0.00040014,120]
[363860954,1748904618134,1039.43,0.00040014,120]
[363860955,1748904618180,424.6834682,0.00040014,120]
[363860956,1748904618227,1674.58,0.00040014,120]
[363860957,1748904618385,1674.58,0.00040014,120]
[363860958,1748904618430,1039.43,0.00040014,120]
[363860959,1748904618489,1674.58,0.00040014,120]
[363860960,1748904618545,1039.43,0.00040014,120]
[363860961,1748904618709,1674.58,0.00040014,120]
[363860962,1748904618757,1039.43,0.00040014,120]
[363860963,1748904618827,1674.58,0.00040014,120]
[363860964,1748904618874,1039.43,0.00040014,120]
[363860965,1748904618922,651.32,0.00040014,120]
[363860966,1748904618974,420.0,0.00040014,120]
[363860967,1748904619021,1674.58,0.00040014,120]
[363860968,1748904619070,651.32,0.00040014,120]
[363860969,1748904619116,1039.43,0.00040014,120]
[363860970,1748904619167,1674.58,0.00040014,120]
[363860971,1748904619220,5951.63,0.00040014,120]
[363860972,1748904619266,1039.43,0.00040014,120]
[363860973,1748904619312,651.32,0.00040014,120]
[363860974,1748904619363,1674.58,0.00040014,120]
[363860975,1748904619621,5951.63,0.00040014,120]
[363860976,1748904619668,651.32,0.00040014,120]
[363860977,1748904619717,1039.43,0.00040014,120]
[363860978,1748904619763,758.43,0.00040014,120]
[363860979,1748904619817,1674.58,0.00040014,120]
[363860980,1748904619869,5951.63,0.00040014,120]
[363860981,1748904619914,651.32,0.00040014,120]
[363860982,1748904619958,1039.59436622,0.00040014,120]
[363860983,1748904620001,758.43,0.00040014,120]
[363860984,1748904620077,5951.63,0.00040014,120]
[363860985,1748904620122,651.32,0.00040014,120]
[363860986,1748904620171,460.0,0.00040014,120]
[363860987,1748904620219,420.0,0.00040014,120]
[363860988,1748904620264,1674.58,0.00040014,120]
[363860989,1748904620311,758.43,0.00040014,120]
[363860990,1748904620394,651.32,0.00040014,120]
[363860991,1748904620454,5951.63,0.00040014,120]
[363860992,1748904620542,460.0,0.00040014,120]
[363860993,1748904620589,1674.58,0.00040014,120]
[363860994,1748904620637,758.43,0.00040014,120]
[363860995,1748904620685,5951.63,0.00040014,120]
[363860996,1748904620731,651.32,0.00040014,120]
[363860997,1748904620775,460.0,0.00040014,120]
[363860998,1748904620825,1674.7,0.00040014,120]
[363860999,1748904620869,758.43,0.00040014,120]
[363861000,1748904620917,5951.63,0.00040014,120]
[363861001,1748904620962,651.32,0.00040014,120]
[363861002,1748904621030,460.0,0.00040014,120]
[363861003,1748904621105,758.43,0.00040014,120]
[363861004,1748904621160,123.86387263,0.00040014,120]
[363861491,1748904637770,-626.16,0.00020943,2]
[363861493,1748904637780,-91.74110824,0.00021369,2]
[363861495,1748904637789,-1163.09889176,0.00021621,2]
[363861497,1748904637801,-886.0,0.00021621,2]
[363861499,1748904637813,-870.96907285,0.00021621,2]
[363861504,1748904638058,-2207.08133327,0.00021621,2]
[363861506,1748904638067,-300.0,0.00021702,2]
[363861508,1748904638076,-183.16346938,0.00021703,2]
[363861520,1748904638175,-66.83653062,0.00021703,2]
[363861522,1748904638184,-400.0,0.00021703,2]
[363861524,1748904638193,-500.0,0.00021703,2]
[363861526,1748904638203,-300.0,0.00021999,2]
[363861528,1748904638212,-190.0,0.00022,5]
[363861530,1748904638221,-150.0,0.00022739,2]
[363861532,1748904638230,-150.0,0.00023,2]
[363861534,1748904638241,-626.16,0.00023207,2]
[363861536,1748904638251,-420.0,0.0002359,2]
[363861538,1748904638260,-300.0,0.00023906,2]
[363861540,1748904638269,-150.0,0.00024109,2]
[363861542,1748904638278,-5021.59697171,0.00024516,2]
[363861544,1748904638287,-626.16,0.00025471,2]
[363861546,1748904638297,-150.0,0.00025478,2]
[363861548,1748904638308,-150.0,0.00026848,2]
[363861550,1748904638318,-626.16,0.00027735,2]
[363861552,1748904638328,-150.0,0.00028218,2]
[363861554,1748904638337,-1703.40859951,0.00028327,2]
[363861556,1748904638347,-3000.0,0.00028584,3]
[363861558,1748904638356,-247.05247698,0.00029439,2]
[363861560,1748904638365,-150.0,0.00029588,2]
[363861562,1748904638379,-626.16,0.00029999,2]
[363861564,1748904638389,-2000.0,0.000301,2]
[363861566,1748904638399,-1407.98397671,0.00030147,2]
[363861568,1748904638409,-153.65,0.000309,2]
[363861570,1748904638418,-150.0,0.00030958,2]
[363861572,1748904638427,-849.0,0.00031031,2]
[363861574,1748904638437,-167.15,0.00031285,2]
[363861576,1748904638446,-1000.0,0.00032193,2]
[363861578,1748904638456,-1000.0,0.00032194,2]
[363861580,1748904638465,-626.16,0.00032263,2]
[363861582,1748904638474,-150.0,0.00032328,2]
[363861584,1748904638483,-10567.0,0.00032576,2]
[363861587,1748904638494,-2000.0,0.000329,2]
[363861589,1748904638503,-515.1,0.00033167,2]
[363861591,1748904638512,-176.32,0.00033306,2]
[363861593,1748904638521,-2585.44,0.0003347,120]
[363861595,1748904638530,-150.0,0.00033698,2]
[363861597,1748904638539,-2322.15,0.00033819,2]
[363861599,1748904638548,-250.0,0.00033819,2]
[363861601,1748904638558,-1033.91,0.00034082,2]
[363861603,1748904638567,-2000.0,0.00034234,5]
[363861605,1748904638576,-152.92,0.00034247,2]
[363861607,1748904638585,-626.16,0.00034526,2]
[363861609,1748904638595,-152.0,0.00034962,3]
[363861611,1748904638607,-150.0,0.00035067,2]
[363861613,1748904638616,-196.07,0.00035095,2]
[363861615,1748904638625,-258.6,0.00035194,2]
[363861617,1748904638635,-150.0,0.0003529,2]
[363861619,1748904638644,-2000.0,0.000356,2]
[363861621,1748904638653,-178.26,0.00035748,120]
[363861623,1748904638662,-204.0,0.00035939,2]
[363861625,1748904638671,-612.01,0.00035942,2]
[363861627,1748904638680,-366.06,0.00036,7]
[363861629,1748904638689,-207.4,0.00036005,2]
[363861631,1748904638698,-300.0,0.00036144,30]
[363861633,1748904638707,-500.0,0.00036144,60]
[363861635,1748904638716,-1000.0,0.00036217,2]
[363861637,1748904638725,-150.0,0.00036232,2]
[363861639,1748904638735,-929.876,0.0003629,44]
[363861641,1748904638744,-150.0,0.00036437,2]
[363861643,1748904638753,-165.98,0.00036635,2]
[363861645,1748904638762,-190.14,0.00036681,120]
[363861647,1748904638771,-651.19,0.00036694,30]
[363861649,1748904638780,-500.0,0.00036724,2]
[363861651,1748904638789,-626.16,0.0003679,2]
[363861653,1748904638799,-150.0,0.00036888,7]
[363861655,1748904638808,-150.0,0.00036888,7]
[363861657,1748904638818,-150.0,0.00036888,7]
[363861659,1748904638827,-150.0,0.00036888,7]
[363861661,1748904638837,-150.0,0.00036888,7]
[363861663,1748904638847,-150.0,0.00036888,7]
[363861665,1748904638855,-150.0,0.00036888,7]
[363861666,1748904638864,-150.0,0.00036888,7]
[363861668,1748904638874,-150.0,0.00036888,7]
[363861670,1748904638883,-150.0,0.00036888,7]
[363861673,1748904638892,-493.74,0.00036923,2]
[363861675,1748904638902,-420.0,0.00037097,2]
[363861677,1748904638912,-151.0,0.00037097,2]
[363861679,1748904638921,-151.0,0.00037097,2]
[363861680,1748904638931,-23900.0,0.00037119,2]
[363861683,1748904638942,-151.0,0.00037152,2]
[363861684,1748904638951,-150.0,0.00037175,2]
[363861686,1748904638960,-154.63898752,0.000372,120]
[363861688,1748904638970,-151.0,0.00037207,2]
[363861691,1748904638979,-500.0,0.0003724,60]
[363861692,1748904638989,-151.0,0.00037262,2]
[363861695,1748904638998,-215.0738,0.00037374,2]
[363861697,1748904639008,-150.0,0.00037473,7]
[363861699,1748904639017,-1073.66629525,0.000375,2]
[363861701,1748904639027,-150.0,0.00037571,7]
[363861703,1748904639036,-150.0,0.00037807,2]
[363861705,1748904639046,-150.0,0.00037912,7]
[363861706,1748904639056,-10022.20520446,0.00037996,2]
[363862159,1748904643633,-719.83657205,0.000356,2]
[363862161,1748904643643,-2964.81541373,0.00037996,2]
[363862220,1748904644216,-3012.97938181,0.00037996,2]
[363862222,1748904644225,-150.0,0.00038059,7]
[363862223,1748904644234,-150.0,0.00038118,2]
[363862225,1748904644243,-164.88,0.00038209,2]
[363862227,1748904644253,-1248.82,0.00038236,5]
[363862229,1748904644263,-150.0,0.00038254,7]
[363862231,1748904644272,-150.0,0.00038254,7]
[363862233,1748904644282,-158.57568237,0.00038256,2]
[363862235,1748904644291,-608.25889176,0.00038336,60]
[363862237,1748904644301,-204.0,0.00038345,7]
[363862239,1748904644312,-46114.7762621,0.00038346,4]
[363862241,1748904644321,-460.0,0.00038356,6]
[363862243,1748904644331,-460.0,0.00038356,6]
[363862245,1748904644340,-460.0,0.00038356,6]
[363862247,1748904644349,-790.55,0.00038356,6]
[363862249,1748904644359,-460.0,0.00038356,6]
[363862251,1748904644368,-1040.53,0.00038356,6]
[363862253,1748904644378,-719.75,0.00038356,6]
[363862255,1748904644388,-460.0,0.00038356,6]
[363862257,1748904644397,-460.0,0.00038356,6]
[363862259,1748904644405,-460.0,0.00038356,6]
[363862261,1748904644415,-460.0,0.00038356,6]
[363862263,1748904644423,-460.0,0.00038356,6]
[363862264,1748904644432,-460.0,0.00038356,6]
[363862266,1748904644442,-460.0,0.00038356,6]
[363862268,1748904644451,-722.99,0.00038356,6]
[363862270,1748904644460,-460.0,0.00038356,2]
[363862272,1748904644469,-588.0,0.00038356,6]
[363862274,1748904644478,-757.63,0.00038356,6]
[363862276,1748904644487,-836.91,0.00038356,6]
[363862278,1748904644497,-460.0,0.00038356,6]
[363862280,1748904644506,-460.0,0.00038356,6]
[363862282,1748904644515,-758.64,0.00038356,6]
[363862284,1748904644524,-460.0,0.00038356,6]
[363862285,1748904644533,-460.0,0.00038356,6]
[363862287,1748904644543,-460.0,0.00038356,6]
[363862289,1748904644551,-507.42,0.00038356,6]
[363862291,1748904644565,-165.29715864,0.00038356,6]
[363862293,1748904644575,-1127.48,0.00038356,6]
[363862295,1748904644584,-460.0,0.00038356,6]
[363862297,1748904644594,-480.79,0.00038356,6]
[363862300,1748904644606,-1170.16,0.00038356,6]
[363862301,1748904644615,-460.0,0.00038356,6]
[363862304,1748904644625,-460.0,0.00038356,6]
[363862305,1748904644635,-460.0,0.00038356,6]
[363862307,1748904644644,-538.2,0.00038356,6]
[363862309,1748904644653,-460.0,0.00038356,6]
[363862311,1748904644664,-460.0,0.00038356,6]
[363862313,1748904644673,-460.0,0.00038356,6]
[363862315,1748904644684,-421.02217229,0.00038356,6]
[363862317,1748904644694,-460.0,0.00038356,6]
[363862319,1748904644704,-460.0,0.00038356,6]
[363862321,1748904644713,-460.0,0.00038356,6]
[363862323,1748904644723,-460.0,0.00038356,6]
[363862325,1748904644732,-460.0,0.00038356,6]
[363862327,1748904644742,-424.59686382,0.00038356,6]
[363862329,1748904644751,-1044.63,0.00038356,6]
[363862331,1748904644761,-460.0,0.00038356,6]
[363862333,1748904644770,-460.0,0.00038356,6]
[363862335,1748904644780,-460.0,0.00038356,6]
[363862337,1748904644789,-420.0,0.00038356,6]
[363862339,1748904644800,-460.0,0.00038356,6]
[363862341,1748904644817,-460.0,0.00038356,6]
[363862343,1748904644826,-460.0,0.00038356,6]
[363862345,1748904644835,-460.0,0.00038356,6]
[363862347,1748904644845,-460.0,0.00038356,6]
[363862349,1748904644854,-460.0,0.00038356,6]
[363862351,1748904644863,-460.0,0.00038356,6]
[363862353,1748904644872,-460.0,0.00038356,6]
[363862354,1748904644883,-762.85,0.00038356,6]
[363862355,1748904644892,-460.0,0.00038356,6]
[363862356,1748904644901,-1190.35,0.00038356,6]
[363862357,1748904644910,-460.0,0.00038356,6]
[363862358,1748904644919,-460.0,0.00038356,6]
[363862359,1748904644928,-2169.71,0.00038356,6]
[363862360,1748904644937,-460.0,0.00038356,6]
[363862361,1748904644946,-460.0,0.00038356,6]
[363862362,1748904644956,-460.0,0.00038356,6]
[363862363,1748904644973,-460.0,0.00038356,6]
[363862364,1748904644982,-460.0,0.00038356,6]
[363862365,1748904644991,-420.0,0.00038356,6]
[363862366,1748904645000,-460.0,0.00038356,6]
[363862368,1748904645010,-460.0,0.00038356,6]
[363862370,1748904645019,-837.97,0.00038356,6]
[363862372,1748904645028,-460.0,0.00038356,6]
[363862374,1748904645037,-460.0,0.00038356,6]
[363862376,1748904645047,-460.0,0.00038356,6]
[363862378,1748904645056,-460.0,0.00038356,6]
[363862380,1748904645066,-460.0,0.00038356,6]
[363862382,1748904645076,-460.0,0.00038356,6]
[363862384,1748904645085,-460.0,0.00038356,6]
[363862386,1748904645095,-460.0,0.00038356,6]
[363862388,1748904645104,-479.44,0.00038356,6]
[363862390,1748904645113,-460.0,0.00038356,6]
[363862392,1748904645123,-460.0,0.00038356,6]
[363862393,1748904645132,-421.44719434,0.00038356,6]
[363862395,1748904645141,-518.59,0.00038356,6]
[363862397,1748904645151,-460.0,0.00038356,6]
[363862399,1748904645160,-1467.29,0.00038356,6]
[363862401,1748904645170,-420.0,0.00038356,6]
[363862403,1748904645179,-460.0,0.00038356,6]
[363862405,1748904645189,-460.0,0.00038356,6]
[363862407,1748904645199,-460.0,0.00038356,6]
[363862409,1748904645209,-496.4,0.00038356,6]
[363862411,1748904645218,-423.00128939,0.00038356,6]
[363862413,1748904645227,-460.0,0.00038356,6]
[363862415,1748904645236,-460.0,0.00038356,6]
[363862417,1748904645245,-460.0,0.00038356,6]
[363862419,1748904645255,-460.0,0.00038356,6]
[363862421,1748904645264,-460.0,0.00038356,6]
[363862423,1748904645273,-460.0,0.00038356,6]
[363862424,1748904645282,-460.0,0.00038356,6]
[363862426,1748904645291,-460.0,0.00038356,6]
[363862428,1748904645301,-460.0,0.00038356,6]
[363862430,1748904645310,-493.42,0.00038356,6]
[363862432,1748904645319,-460.0,0.00038356,6]
[363862434,1748904645328,-460.0,0.00038356,6]
[363862436,1748904645337,-605.92,0.00038356,6]
[363862438,1748904645347,-460.0,0.00038356,6]
[363862440,1748904645356,-460.0,0.00038356,6]
[363862442,1748904645365,-460.0,0.00038356,6]
[363862444,1748904645375,-460.0,0.00038356,6]
[363862446,1748904645385,-420.0,0.00038356,6]
[363862447,1748904645394,-460.0,0.00038356,6]
[363862449,1748904645403,-460.0,0.00038356,6]
[363862451,1748904645412,-460.0,0.00038356,6]
[363862453,1748904645422,-460.0,0.00038356,6]
[363862455,1748904645431,-460.0,0.00038356,6]
[363862457,1748904645441,-460.0,0.00038356,6]
[363862459,1748904645450,-460.0,0.00038356,6]
[363862461,1748904645459,-460.0,0.00038356,6]
[363862462,1748904645468,-460.0,0.00038356,6]
[363862464,1748904645477,-460.0,0.00038356,6]
[363862466,1748904645486,-600.0,0.00038356,2]
[363862468,1748904645495,-460.0,0.00038356,6]
[363862470,1748904645504,-513.81,0.00038356,6]
[363862471,1748904645514,-460.0,0.00038356,6]
[363862472,1748904645523,-460.0,0.00038356,6]
[363862473,1748904645532,-598.08,0.00038356,6]
[363862474,1748904645542,-1337.37,0.00038356,6]
[363862475,1748904645551,-460.0,0.00038356,6]
[363862476,1748904645561,-460.0,0.00038356,6]
[363862477,1748904645571,-460.0,0.00038356,6]
[363862478,1748904645580,-801.08,0.00038356,6]
[363862479,1748904645590,-733.24,0.00038356,6]
[363862480,1748904645599,-709.69,0.00038356,6]
[363862481,1748904645613,-460.0,0.00038356,6]
[363862482,1748904645622,-460.0,0.00038356,6]
[363862483,1748904645631,-460.0,0.00038356,6]
[363862484,1748904645640,-420.0,0.00038356,6]
[363862485,1748904645651,-460.0,0.00038356,6]
[363862486,1748904645660,-460.0,0.00038356,6]
[363862487,1748904645669,-460.0,0.00038356,6]
[363862488,1748904645679,-460.0,0.00038356,6]
[363862489,1748904645688,-517.7,0.00038356,6]
[363862490,1748904645698,-460.0,0.00038356,6]
[363862491,1748904645707,-420.88034254,0.00038356,6]
[363862492,1748904645717,-460.0,0.00038356,6]
[363862493,1748904645726,-460.0,0.00038356,6]